fUST/lending_fUST_20251001
["ID","MTS","AMOUNT","RATE_DAILY","PERIOD"]
[388696581,1759320656673,-428.7766986,0.00020021,2]
[388696582,1759320656682,-521.44036848,0.00020021,2]
[388696583,1759320656691,-1000.0,0.00020021,2]
[388696584,1759320656701,-500.0,0.00020021,2]
[388696585,1759320656710,-504.39253887,0.00020021,2]
[388696586,1759320656720,-500.0,0.00020021,2]
[388696587,1759320656729,-1000.0,0.00020021,2]
[388696588,1759320656739,-500.0,0.00020021,2]
[388696589,1759320656750,-1000.0,0.00020021,2]
[388696590,1759320656759,-1000.0,0.00020021,2]
[388696591,1759320656768,-1000.0,0.00020021,2]
[388696592,1759320656778,-500.0,0.00020021,2]
[388696593,1759320656787,-240.64680277,0.00020021,2]
[388696594,1759320656796,-273.33965458,0.00020021,2]
[388696595,1759320656806,-1000.0,0.00020021,2]
[388696596,1759320656815,-500.0,0.00020021,2]
[388696597,1759320656824,-500.0,0.00020021,2]
[388696598,1759320656833,-500.0,0.00020021,2]
[388696599,1759320656842,-500.0,0.00020021,2]
[388696600,1759320656852,-1001.68996385,0.00020021,2]
[388696601,1759320656862,-413.1103713,0.00020021,2]
[388696602,1759320656871,-500.0,0.00020021,2]
[388696603,1759320656880,-500.0,0.00020021,2]
[388696604,1759320656891,-151.0,0.00020021,2]
[388696605,1759320656900,-151.0,0.00020021,2]
[388696606,1759320656909,-151.0,0.00020021,2]
[388696607,1759320656918,-151.0,0.00020021,2]
[388696608,1759320656927,-179.342345,0.00020074,7]
[388696609,1759320656937,-1435.55186437,0.00020081,2]
[388696610,1759320656946,-700.0,0.000202,2]
[388696611,1759320656956,-658.01844446,0.00020211,2]
[388696612,1759320656965,-151.0,0.00020268,2]
[388696613,1759320656974,-151.0,0.00020268,2]
[388696614,1759320656985,-246.789324,0.00020268,2]
[388696615,1759320656995,-1500.0,0.00020268,2]
[388696616,1759320657005,-1500.0,0.00020268,2]
[388696617,1759320657013,-1500.0,0.00020268,2]
[388696618,1759320657023,-1500.0,0.00020268,2]
[388696619,1759320657032,-1500.0,0.00020268,2]
[388696620,1759320657041,-1500.0,0.00020268,2]
[388696621,1759320657051,-1500.0,0.00020268,2]
[388696622,1759320657060,-1500.0,0.00020268,2]
[388696623,1759320657069,-506.06717383,0.00020268,2]
[388696624,1759320657079,-1500.0,0.00020268,2]
[388696625,1759320657088,-1500.0,0.00020268,2]
[388696626,1759320657098,-1130.89369699,0.00020268,2]
[388696627,1759320657108,-1502.43559663,0.00020268,2]
[388696629,1759320657117,-505.33770531,0.00020268,2]
[388696631,1759320657126,-997.64451734,0.00020273,2]
[388696633,1759320657135,-694.6,0.00020273,2]
[388696634,1759320657144,-500.0,0.00020273,2]
[388696636,1759320657153,-500.0,0.00020273,2]
[388696638,1759320657163,-500.0,0.00020273,2]
[388696640,1759320657172,-500.0,0.00020273,2]
[388696642,1759320657181,-500.0,0.00020273,2]
[388696644,1759320657190,-500.0,0.00020273,2]
[388696646,1759320657199,-500.0,0.00020273,2]
[388696647,1759320657208,-500.0,0.00020273,2]
[388696649,1759320657217,-594.7888316,0.00020273,2]
[388696651,1759320657227,-500.0,0.00020273,2]
[388696653,1759320657236,-500.0,0.00020273,2]
[388696655,1759320657245,-383.59061024,0.00020273,2]
[388696657,1759320657254,-500.0,0.00020273,2]
[388696659,1759320657263,-736.33,0.00020273,2]
[388696661,1759320657273,-500.0,0.00020273,2]
[388696663,1759320657282,-500.0,0.00020273,2]
[388696664,1759320657292,-505.58,0.00020273,2]
[388696666,1759320657301,-737.15,0.00020273,2]
[388696668,1759320657311,-500.0,0.00020273,2]
[388696670,1759320657320,-989.99,0.00020273,2]
[388696672,1759320657329,-500.0,0.00020273,2]
[388696674,1759320657338,-965.61,0.00020273,2]
[388696676,1759320657347,-500.0,0.00020273,2]
[388696678,1759320657356,-525.24,0.00020273,2]
[388696680,1759320657365,-500.0,0.00020273,2]
[388696682,1759320657374,-840.33,0.00020273,2]
[388696683,1759320657383,-500.0,0.00020273,2]
[388696684,1759320657392,-500.0,0.00020273,2]
[388696686,1759320657403,-500.0,0.00020273,2]
[388696688,1759320657412,-500.0,0.00020273,2]
[388696690,1759320657421,-500.0,0.00020273,2]
[388696691,1759320657431,-500.0,0.00020273,2]
[388696692,1759320657440,-500.0,0.00020273,2]
[388696693,1759320657450,-500.0,0.00020273,2]
[388696694,1759320657464,-500.0,0.00020273,2]
[388696695,1759320657474,-1000.0,0.00020273,2]
[388696696,1759320657483,-500.0,0.00020273,2]
[388696697,1759320657496,-843.24,0.00020273,2]
[388696698,1759320657505,-846.04,0.00020273,2]
[388696699,1759320657516,-563.75853418,0.00020273,2]
[388696700,1759320657526,-500.0,0.00020273,2]
[388696701,1759320657539,-500.0,0.00020273,2]
[388696702,1759320657549,-2147.04,0.00020273,2]
[388696703,1759320657558,-500.0,0.00020273,2]
[388696704,1759320657567,-500.0,0.00020273,2]
[388696705,1759320657576,-500.0,0.00020273,2]
[388696706,1759320657585,-500.0,0.00020273,2]
[388696707,1759320657594,-500.0,0.00020273,2]
[388696708,1759320657603,-550.58,0.00020273,2]
[388696709,1759320657612,-500.0,0.00020273,2]
[388696710,1759320657621,-500.0,0.00020273,2]
[388696711,1759320657630,-500.0,0.00020273,2]
[388696712,1759320657639,-707.69,0.00020273,2]
[388696713,1759320657649,-500.0,0.00020273,2]
[388696714,1759320657658,-833.33,0.00020273,2]
[388696715,1759320657667,-500.0,0.00020273,2]
[388696716,1759320657676,-500.0,0.00020273,2]
[388696717,1759320657686,-721.98,0.00020273,2]
[388696718,1759320657695,-1279.89,0.00020273,2]
[388696719,1759320657706,-500.0,0.00020273,2]
[388696720,1759320657719,-745.73,0.00020273,2]
[388696721,1759320657728,-500.0,0.00020273,2]
[388696722,1759320657737,-715.31,0.00020273,2]
[388696723,1759320657747,-500.0,0.00020273,2]
[388696724,1759320657756,-2003.68,0.00020273,2]
[388696725,1759320657766,-500.0,0.00020273,2]
[388696726,1759320657775,-518.67,0.00020273,2]
[388696727,1759320657784,-500.0,0.00020273,2]
[388696728,1759320657794,-500.0,0.00020273,2]
[388696729,1759320657803,-1225.59,0.00020273,2]
[388696730,1759320657812,-500.0,0.00020273,2]
[388696731,1759320657822,-2607.87,0.00020273,2]
[388696732,1759320657831,-582.49,0.00020273,2]
[388696733,1759320657839,-500.0,0.00020273,2]
[388696734,1759320657849,-500.0,0.00020273,2]
[388696735,1759320657858,-500.0,0.00020273,2]
[388696736,1759320657868,-2194.54,0.00020273,2]
[388696737,1759320657877,-500.0,0.00020273,2]
[388696738,1759320657887,-500.0,0.00020273,2]
[388696739,1759320657896,-1000.83,0.00020273,2]
[388696740,1759320657906,-500.0,0.00020273,2]
[388696741,1759320657915,-500.0,0.00020273,2]
[388696742,1759320657925,-500.0,0.00020273,2]
[388696743,1759320657935,-500.0,0.00020273,2]
[388696744,1759320657944,-500.0,0.00020273,2]
[388696745,1759320657953,-500.0,0.00020273,2]
[388696746,1759320657963,-500.0,0.00020273,2]
[388696747,1759320657973,-500.0,0.00020273,2]
[388696748,1759320657982,-500.0,0.00020273,2]
[388696749,1759320658128,-500.0,0.00020273,2]
[388696750,1759320658138,-500.0,0.00020273,2]
[388696751,1759320658148,-500.0,0.00020273,2]
[388696752,1759320658158,-500.0,0.00020273,2]
[388696753,1759320658167,-617.87,0.00020273,2]
[388696754,1759320658176,-1052.05,0.00020273,2]
[388696755,1759320658186,-514.89,0.00020273,2]
[388696756,1759320658195,-638.55291868,0.00020273,2]
[388696757,1759320658205,-672.57,0.00020273,2]
[388696758,1759320658214,-500.0,0.00020273,2]
[388696759,1759320658224,-151.0,0.00020273,2]
[388696760,1759320658234,-2195.31,0.00020273,2]
[388696761,1759320658243,-853.86,0.00020273,2]
[388696762,1759320658254,-500.0,0.00020273,2]
[388696763,1759320658263,-500.0,0.00020273,2]
[388696764,1759320658273,-525.14,0.00020273,2]
[388696765,1759320658283,-1144.28,0.00020273,2]
[388696766,1759320658292,-500.0,0.00020273,2]
[388696767,1759320658302,-500.0,0.00020273,2]
[388696768,1759320658313,-500.0,0.00020273,2]
[388696769,1759320658322,-500.0,0.00020273,2]
[388696770,1759320658332,-837.14,0.00020273,2]
[388696771,1759320658341,-500.0,0.00020273,2]
[388696772,1759320658351,-500.0,0.00020273,2]
[388696773,1759320658360,-500.0,0.00020273,2]
[388696774,1759320658369,-500.0,0.00020273,2]
[388696775,1759320658379,-500.0,0.00020273,2]
[388696776,1759320658388,-500.0,0.00020273,2]
[388696777,1759320658398,-500.0,0.00020273,2]
[388696778,1759320658407,-500.0,0.00020273,2]
[388696779,1759320658417,-500.0,0.00020273,2]
[388696780,1759320658427,-500.0,0.00020273,2]
[388696781,1759320658437,-1814.51,0.00020273,2]
[388696782,1759320658446,-500.0,0.00020273,2]
[388696783,1759320658459,-626.76,0.00020273,2]
[388696784,1759320658469,-500.0,0.00020273,2]
[388696785,1759320658479,-837.62,0.00020273,2]
[388696786,1759320658489,-3011.93,0.00020273,2]
[388696787,1759320658499,-3103.44,0.00020273,2]
[388696788,1759320658509,-500.0,0.00020273,2]
[388696789,1759320658518,-337.4889169,0.00020273,2]
[388696790,1759320658529,-9707.79,0.00020273,2]
[388696791,1759320658540,-558.29,0.00020273,2]
[388696792,1759320658549,-623.69,0.00020273,2]
[388696793,1759320658559,-500.0,0.00020273,2]
[388696794,1759320658568,-500.0,0.00020273,2]
[388696795,1759320658577,-500.0,0.00020273,2]
[388696796,1759320658587,-500.0,0.00020273,2]
[388696797,1759320658596,-500.0,0.00020273,2]
[388696798,1759320658605,-1398.77,0.00020273,2]
[388696799,1759320658615,-500.0,0.00020273,2]
[388696800,1759320658624,-777.44,0.00020273,2]
[388696801,1759320658634,-2943.09,0.00020273,2]
[388696802,1759320658643,-500.0,0.00020273,2]
[388696803,1759320658653,-633.84,0.00020273,2]
[388696804,1759320658662,-769.37,0.00020273,2]
[388696805,1759320658672,-699.87,0.00020273,2]
[388696806,1759320658682,-725.68,0.00020273,2]
[388696807,1759320658691,-536.36,0.00020273,2]
[388696808,1759320658700,-1416.79,0.00020273,2]
[388696809,1759320658709,-500.0,0.00020273,2]
[388696810,1759320658718,-500.0,0.00020273,2]
[388696811,1759320658728,-890.93,0.00020273,2]
[388696812,1759320658738,-988.01,0.00020273,2]
[388696813,1759320658748,-542.9,0.00020273,2]
[388696814,1759320658757,-1581.99,0.00020273,2]
[388696815,1759320658766,-3836.84,0.00020273,2]
[388696816,1759320658775,-500.0,0.00020273,2]
[388696817,1759320658784,-500.0,0.00020273,2]
[388696818,1759320658794,-768.33,0.00020273,2]
[388696819,1759320658803,-500.0,0.00020273,2]
[388696820,1759320658813,-753.42,0.00020273,2]
[388696821,1759320658822,-1397.1,0.00020273,2]
[388696822,1759320658832,-1175.95,0.00020273,2]
[388696823,1759320658841,-1131.51,0.00020273,2]
[388696824,1759320658850,-1040.35,0.00020273,2]
[388696825,1759320658860,-1765.72,0.00020273,2]
[388696826,1759320658869,-500.0,0.00020273,2]
[388696827,1759320658878,-1358.96,0.00020273,2]
[388696828,1759320658888,-914.43,0.00020273,2]
[388696829,1759320658898,-500.0,0.00020273,2]
[388696830,1759320658907,-500.0,0.00020273,2]
[388696831,1759320658916,-1077.71,0.00020273,2]
[388696832,1759320658926,-1512.41,0.00020273,2]
[388696833,1759320658935,-1494.53,0.00020273,2]
[388696834,1759320658944,-384.82415666,0.00020273,2]
[388696835,1759320658954,-1192.61,0.00020273,2]
[388696836,1759320658963,-2593.98,0.00020273,2]
[388696837,1759320658973,-500.0,0.00020273,2]
[388696838,1759320658983,-500.0,0.00020273,2]
[388696839,1759320658992,-500.0,0.00020273,2]
[388696840,1759320659002,-912.84,0.00020273,2]
[388696841,1759320659011,-500.0,0.00020273,2]
[388696842,1759320659021,-1365.62,0.00020273,2]
[388696843,1759320659031,-500.0,0.00020273,2]
[388696844,1759320659040,-2301.49,0.00020273,2]
[388696845,1759320659050,-1635.84,0.00020273,2]
[388696846,1759320659059,-500.0,0.00020273,2]
[388696847,1759320659068,-1331.41,0.00020273,2]
[388696848,1759320659079,-753.6,0.00020273,2]
[388696849,1759320659089,-500.0,0.00020273,2]
[388696850,1759320659099,-151.0,0.00020273,2]
[388696851,1759320659109,-3096.843294,0.00020273,2]
[388696852,1759320659119,-608.8,0.00020273,2]
[388696853,1759320659128,-3096.843294,0.00020273,2]
[388696854,1759320659138,-1410.65,0.00020273,2]
[388696855,1759320659148,-3096.843294,0.00020273,2]
[388696856,1759320659157,-500.0,0.00020273,2]
[388696857,1759320659167,-969.33,0.00020273,2]
[388696858,1759320659176,-1287.65,0.00020273,2]
[388696859,1759320659185,-3096.843294,0.00020273,2]
[388696860,1759320659194,-513.99,0.00020273,2]
[388696861,1759320659203,-500.0,0.00020273,2]
[388696862,1759320659212,-151.0,0.00020273,2]
[388696863,1759320659221,-500.0,0.00020273,2]
[388696864,1759320659231,-500.0,0.00020273,2]
[388696865,1759320659240,-500.0,0.00020273,2]
[388696866,1759320659251,-1732.6,0.00020273,2]
[388696867,1759320659260,-500.0,0.00020273,2]
[388696868,1759320659270,-609.58,0.00020273,2]
[388696869,1759320659280,-500.0,0.00020273,2]
[388696870,1759320659290,-1538.32,0.00020273,2]
[388696871,1759320659299,-500.0,0.00020273,2]
[388696872,1759320659308,-500.0,0.00020273,2]
[388696873,1759320659318,-151.0,0.00020273,2]
[388696874,1759320659328,-151.0,0.00020273,2]
[388696875,1759320659337,-500.0,0.00020273,2]
[388696876,1759320659346,-1690.93,0.00020273,2]
[388696877,1759320659355,-1362.49,0.00020273,2]
[388696878,1759320659364,-3743.6,0.00020273,2]
[388696879,1759320659373,-688.66,0.00020273,2]
[388696880,1759320659383,-500.0,0.00020273,2]
[388696881,1759320659392,-687.26,0.00020273,2]
[388696882,1759320659401,-1581.1,0.00020273,2]
[388696883,1759320659410,-151.0,0.00020273,2]
[388696884,1759320659420,-532.14,0.00020273,2]
[388696885,1759320659430,-5446.89,0.00020273,2]
[388696886,1759320659439,-784.27,0.00020273,2]
[388696887,1759320659448,-870.41,0.00020273,2]
[388696888,1759320659463,-1124.52,0.00020273,2]
[388696889,1759320659473,-1500.68,0.00020273,2]
[388696890,1759320659482,-1329.71,0.00020273,2]
[388696891,1759320659491,-1828.66,0.00020273,2]
[388696892,1759320659503,-500.0,0.00020273,2]
[388696893,1759320659513,-500.0,0.00020273,2]
[388696894,1759320659522,-996.02,0.00020273,2]
[388696895,1759320659531,-322.45573413,0.00020273,2]
[388696896,1759320659541,-641.62,0.00020273,2]
[388696897,1759320659550,-1631.9,0.00020273,2]
[388696898,1759320659560,-1322.05,0.00020273,2]
[388696899,1759320659569,-1948.55,0.00020273,2]
[388696900,1759320659578,-500.0,0.00020273,2]
[388696901,1759320659587,-500.0,0.00020273,2]
[388696902,1759320659597,-2760.55,0.00020273,2]
[388696903,1759320659606,-500.0,0.00020273,2]
[388696904,1759320659615,-153.056476,0.00020273,2]
[388696905,1759320659624,-571.30175817,0.00020273,2]
[388696906,1759320659634,-500.0,0.00020273,2]
[388696907,1759320659643,-2922.0,0.00020273,2]
[388696908,1759320659652,-500.0,0.00020273,2]
[388696909,1759320659662,-1700.34,0.00020273,2]
[388696910,1759320659671,-3927.86,0.00020273,2]
[388696911,1759320659681,-500.0,0.00020273,2]
[388696912,1759320659690,-500.0,0.00020273,2]
[388696913,1759320659700,-2025.65,0.00020273,2]
[388696914,1759320659710,-500.0,0.00020273,2]
[388696915,1759320659720,-500.0,0.00020273,2]
[388696916,1759320659729,-941.44,0.00020273,2]
[388696917,1759320659738,-812.39,0.00020273,2]
[388696918,1759320659747,-928.86,0.00020273,2]
[388696919,1759320659757,-500.0,0.00020274,2]
[388696920,1759320659766,-5000.0,0.00020294,2]
[388696921,1759320659777,-151.0,0.00020294,2]
[388696922,1759320659786,-199.042035,0.00020294,2]
[388696923,1759320659796,-151.0,0.00020294,2]
[388696924,1759320659805,-151.0,0.00020294,2]
[388696925,1759320659815,-151.0,0.000203,4]
[388696926,1759320659825,-505.86818683,0.00020311,2]
[388696927,1759320659834,-2924.0,0.00020335,2]
[388696928,1759320659843,-979.0,0.00020335,2]
[388696929,1759320659853,-630.0,0.00020335,2]
[388696930,1759320659862,-2156.0,0.00020335,2]
[388696931,1759320659872,-410.0,0.00020336,2]
[388696932,1759320659882,-428.711,0.00020336,2]
[388696933,1759320659891,-166.0,0.00020401,2]
[388696934,1759320659901,-167.54304195,0.00020447,2]
[388696935,1759320659911,-179.342345,0.00020463,7]
[388696936,1759320659922,-150.0,0.00020472,2]
[388696937,1759320659931,-150.0,0.00020472,2]
[388696938,1759320659940,-150.0,0.00020472,2]
[388696939,1759320659950,-179.342345,0.00020476,3]
[388696940,1759320659959,-1435.55186437,0.00020521,2]
[388696941,1759320659969,-752.56,0.00020533,3]
[388696942,1759320659979,-376.28,0.00020533,3]
[388696943,1759320659988,-694.6,0.00020547,2]
[388696944,1759320659997,-500.0,0.00020547,2]
[388696945,1759320660007,-500.0,0.00020547,2]
[388696946,1759320660017,-609.43717048,0.00020547,2]
[388696947,1759320660027,-404.03539874,0.00020547,2]
[388696948,1759320660037,-365.0625246,0.00020547,2]
[388696949,1759320660047,-500.0,0.00020547,2]
[388696950,1759320660057,-500.0,0.00020547,2]
[388696951,1759320660067,-500.0,0.00020547,2]
[388696952,1759320660076,-500.0,0.00020547,2]
[388696953,1759320660086,-736.33,0.00020547,2]
[388696954,1759320660096,-500.0,0.00020547,2]
[388696955,1759320660106,-505.58,0.00020547,2]
[388696956,1759320660115,-737.15,0.00020547,2]
[388696957,1759320660124,-500.0,0.00020547,2]
[388696958,1759320660134,-989.99,0.00020547,2]
[388696959,1759320660143,-500.0,0.00020547,2]
[388696960,1759320660153,-965.61,0.00020547,2]
[388696961,1759320660162,-500.0,0.00020547,2]
[388696962,1759320660172,-525.24,0.00020547,2]
[388696963,1759320660182,-500.0,0.00020547,2]
[388696964,1759320660196,-840.33,0.00020547,2]
[388696965,1759320660206,-319.78809644,0.00020547,2]
[388696966,1759320660215,-500.0,0.00020547,2]
[388696967,1759320660225,-500.0,0.00020547,2]
[388696968,1759320660234,-500.0,0.00020547,2]
[388696969,1759320660243,-500.0,0.00020547,2]
[388696970,1759320660254,-500.0,0.00020547,2]
[388696971,1759320660263,-500.0,0.00020547,2]
[388696972,1759320660272,-843.24,0.00020547,2]
[388696973,1759320660282,-846.04,0.00020547,2]
[388696974,1759320660291,-2147.04,0.00020547,2]
[388696975,1759320660301,-500.0,0.00020547,2]
[388696976,1759320660311,-500.0,0.00020547,2]
[388696977,1759320660320,-500.0,0.00020547,2]
[388696978,1759320660329,-550.58,0.00020547,2]
[388696979,1759320660338,-500.0,0.00020547,2]
[388696980,1759320660347,-500.0,0.00020547,2]
[388696981,1759320660357,-500.0,0.00020547,2]
[388696982,1759320660366,-707.69,0.00020547,2]
[388696983,1759320660376,-500.0,0.00020547,2]
[388696984,1759320660490,-833.33,0.00020547,2]
[388696985,1759320660510,-500.0,0.00020547,2]
[388696986,1759320660520,-721.98,0.00020547,2]
[388696987,1759320660531,-1279.89,0.00020547,2]
[388696988,1759320660540,-500.0,0.00020547,2]
[388696989,1759320660549,-745.73,0.00020547,2]
[388696990,1759320660558,-500.0,0.00020547,2]
[388696991,1759320660568,-715.31,0.00020547,2]
[388696992,1759320660577,-500.0,0.00020547,2]
[388696993,1759320660586,-2003.68,0.00020547,2]
[388696994,1759320660596,-500.0,0.00020547,2]
[388696995,1759320660606,-518.67,0.00020547,2]
[388696996,1759320660616,-500.0,0.00020547,2]
[388696997,1759320660625,-1225.59,0.00020547,2]
[388696998,1759320660635,-2607.87,0.00020547,2]
[388696999,1759320660644,-582.49,0.00020547,2]
[388697000,1759320660654,-500.0,0.00020547,2]
[388697001,1759320660663,-500.0,0.00020547,2]
[388697002,1759320660672,-2194.54,0.00020547,2]
[388697003,1759320660682,-500.0,0.00020547,2]
[388697004,1759320660691,-1000.83,0.00020547,2]
[388697005,1759320660701,-500.0,0.00020547,2]
[388697006,1759320660710,-295.19536996,0.00020547,2]
[388697007,1759320660720,-500.0,0.00020547,2]
[388697008,1759320660729,-500.0,0.00020547,2]
[388697009,1759320660738,-500.0,0.00020547,2]
[388697010,1759320660747,-500.0,0.00020547,2]
[388697011,1759320660756,-500.0,0.00020547,2]
[388697012,1759320660765,-500.0,0.00020547,2]
[388697013,1759320660775,-500.0,0.00020547,2]
[388697014,1759320660784,-617.87,0.00020547,2]
[388697015,1759320660794,-1052.05,0.00020547,2]
[388697016,1759320660803,-514.89,0.00020547,2]
[388697017,1759320660813,-672.57,0.00020547,2]
[388697018,1759320660822,-500.0,0.00020547,2]
[388697019,1759320660831,-151.0,0.00020547,2]
[388697020,1759320660841,-2195.31,0.00020547,2]
[388697021,1759320660850,-853.86,0.00020547,2]
[388697022,1759320660859,-500.0,0.00020547,2]
[388697023,1759320660868,-525.14,0.00020547,2]
[388697024,1759320660878,-1144.28,0.00020547,2]
[388697025,1759320660888,-500.0,0.00020547,2]
[388697026,1759320660898,-620.7859093,0.00020547,2]
[388697027,1759320660907,-500.0,0.00020547,2]
[388697028,1759320660916,-500.0,0.00020547,2]
[388697029,1759320660926,-837.14,0.00020547,2]
[388697030,1759320660936,-649.02,0.00020547,2]
[388697031,1759320660946,-500.0,0.00020547,2]
[388697032,1759320660955,-500.0,0.00020547,2]
[388697033,1759320660964,-500.0,0.00020547,2]
[388697034,1759320660973,-500.0,0.00020547,2]
[388697035,1759320660983,-500.0,0.00020547,2]
[388697036,1759320660991,-500.0,0.00020547,2]
[388697037,1759320660999,-151.0,0.00020547,2]
[388697038,1759320661006,-500.0,0.00020547,2]
[388697039,1759320661014,-1814.51,0.00020547,2]
[388697040,1759320661022,-500.0,0.00020547,2]
[388697041,1759320661030,-626.76,0.00020547,2]
[388697042,1759320661038,-151.0,0.00020547,2]
[388697043,1759320661046,-500.0,0.00020547,2]
[388697044,1759320661055,-837.62,0.00020547,2]
[388697045,1759320661062,-3011.93,0.00020547,2]
[388697046,1759320661069,-3103.44,0.00020547,2]
[388697047,1759320661077,-500.0,0.00020547,2]
[388697048,1759320661085,-9707.79,0.00020547,2]
[388697049,1759320661093,-558.29,0.00020547,2]
[388697050,1759320661101,-623.69,0.00020547,2]
[388697051,1759320661108,-500.0,0.00020547,2]
[388697052,1759320661116,-500.0,0.00020547,2]
[388697053,1759320661125,-500.0,0.00020547,2]
[388697054,1759320661133,-182.47490984,0.00020547,2]
[388697055,1759320661140,-1398.77,0.00020547,2]
[388697056,1759320661148,-500.0,0.00020547,2]
[388697057,1759320661156,-777.44,0.00020547,2]
[388697058,1759320661166,-2943.09,0.00020547,2]
[388697059,1759320661175,-769.37,0.00020547,2]
[388697060,1759320661185,-633.84,0.00020547,2]
[388697061,1759320661195,-699.87,0.00020547,2]
[388697062,1759320661204,-725.68,0.00020547,2]
[388697063,1759320661213,-536.36,0.00020547,2]
[388697064,1759320661223,-1416.79,0.00020547,2]
[388697065,1759320661233,-500.0,0.00020547,2]
[388697066,1759320661242,-890.93,0.00020547,2]
[388697067,1759320661251,-988.01,0.00020547,2]
[388697068,1759320661260,-542.9,0.00020547,2]
[388697069,1759320661270,-1581.99,0.00020547,2]
[388697070,1759320661279,-3836.84,0.00020547,2]
[388697071,1759320661289,-500.0,0.00020547,2]
[388697072,1759320661297,-500.0,0.00020547,2]
[388697073,1759320661307,-768.33,0.00020547,2]
[388697074,1759320661316,-434.85758031,0.00020547,2]
[388697075,1759320661326,-753.42,0.00020547,2]
[388697076,1759320661335,-1397.1,0.00020547,2]
[388697077,1759320661344,-1175.95,0.00020547,2]
[388697078,1759320661354,-1131.51,0.00020547,2]
[388697079,1759320661363,-1040.35,0.00020547,2]
[388697080,1759320661372,-1765.72,0.00020547,2]
[388697081,1759320661382,-500.0,0.00020547,2]
[388697082,1759320661392,-1358.96,0.00020547,2]
[388697083,1759320661401,-914.43,0.00020547,2]
[388697084,1759320661410,-500.0,0.00020547,2]
[388697085,1759320661420,-1077.71,0.00020547,2]
[388697086,1759320661429,-1512.41,0.00020547,2]
[388697087,1759320661439,-1494.53,0.00020547,2]
[388697088,1759320661448,-1192.61,0.00020547,2]
[388697089,1759320661460,-2593.98,0.00020547,2]
[388697090,1759320661471,-500.0,0.00020547,2]
[388697091,1759320661480,-500.0,0.00020547,2]
[388697092,1759320661490,-912.84,0.00020547,2]
[388697093,1759320661499,-500.0,0.00020547,2]
[388697094,1759320661509,-1365.62,0.00020547,2]
[388697095,1759320661518,-500.0,0.00020547,2]
[388697096,1759320661527,-2301.49,0.00020547,2]
[388697097,1759320661539,-1635.84,0.00020547,2]
[388697098,1759320661549,-500.0,0.00020547,2]
[388697099,1759320661558,-1331.41,0.00020547,2]
[388697100,1759320661568,-753.6,0.00020547,2]
[388697101,1759320661578,-151.0,0.00020547,2]
[388697102,1759320661588,-3096.843294,0.00020547,2]
[388697103,1759320661599,-608.8,0.00020547,2]
[388697104,1759320661609,-3096.843294,0.00020547,2]
[388697105,1759320661619,-1410.65,0.00020547,2]
[388697106,1759320661630,-500.0,0.00020547,2]
[388697107,1759320661640,-3096.843294,0.00020547,2]
[388697108,1759320661649,-969.33,0.00020547,2]
[388697109,1759320661658,-1287.65,0.00020547,2]